[Event "Early-Titled-Tuesday-Blitz-March-19-2024"]
[Site "Chess.com"]
[Date "2024.03.19"]
[Round "2"]
[White "GoltsevDmitry2000"]
[Black "jimmy-schlumpf"]
[Result "1-0"]
[WhiteElo "2768"]
[BlackElo "2340"]
[TimeControl "180+1"]
[EndTime "8:13:19 PDT"]
[Termination "GoltsevDmitry2000 won by resignation"]

1. e4 {[%clk 0:02:59.3]} 1... c6 {[%clk 0:02:58.9]} 2. e5 {[%clk 0:02:59.4]}
2... d5 {[%clk 0:02:57.1]} 3. exd6 {[%clk 0:03:00.3]} 3... exd6 {[%clk
0:02:56.1]} 4. d4 {[%clk 0:03:01.2]} 4... Nf6 {[%clk 0:02:54.3]} 5. Nf3 {[%clk
0:03:02.1]} 5... Bg4 {[%clk 0:02:52.1]} 6. c4 {[%clk 0:03:03]} 6... Be7 {[%clk
0:02:51]} 7. Nc3 {[%clk 0:03:03.3]} 7... O-O {[%clk 0:02:50.5]} 8. Bd3 {[%clk
0:03:03.8]} 8... d5 {[%clk 0:02:47.2]} 9. O-O {[%clk 0:03:03.9]} 9... dxc4
{[%clk 0:02:46.6]} 10. Bxc4 {[%clk 0:03:04.8]} 10... Bxf3 {[%clk 0:02:45.3]} 11.
Qxf3 {[%clk 0:03:04.6]} 11... Qxd4 {[%clk 0:02:45.3]} 12. Bb3 {[%clk 0:03:05.1]}
12... Nbd7 {[%clk 0:02:42.1]} 13. Bg5 {[%clk 0:03:04.6]} 13... Rfe8 {[%clk
0:02:36.3]} 14. Rad1 {[%clk 0:03:04.4]} 14... Qc5 {[%clk 0:02:25.1]} 15. Rxd7
{[%clk 0:03:01.7]} 15... Nxd7 {[%clk 0:02:21.1]} 16. Bxf7+ {[%clk 0:02:58.5]}
16... Kh8 {[%clk 0:02:07.3]} 17. Bxe8 {[%clk 0:02:58.2]} 17... Rxe8 {[%clk
0:02:07.4]} 18. Qf7 {[%clk 0:02:55.4]} 1-0

[Event "Early-Titled-Tuesday-Blitz-March-19-2024"]
[Site "Chess.com"]
[Date "2024.03.19"]
[Round "2"]
[White "semchik73"]
[Black "DavidGavrilescu18"]
[Result "0-1"]
[WhiteElo "2427"]
[BlackElo "2786"]
[TimeControl "180+1"]
[EndTime "8:13:32 PDT"]
[Termination "DavidGavrilescu18 won by resignation"]

1. Nf3 {[%clk 0:03:00.4]} 1... d5 {[%clk 0:02:58.1]} 2. c4 {[%clk 0:03:00.7]}
2... d4 {[%clk 0:02:58.2]} 3. e3 {[%clk 0:03:01.1]} 3... Nc6 {[%clk 0:02:57.5]}
4. b4 {[%clk 0:03:01.4]} 4... dxe3 {[%clk 0:02:56.8]} 5. fxe3 {[%clk 0:03:02.3]}
5... e5 {[%clk 0:02:56.7]} 6. b5 {[%clk 0:03:01.9]} 6... Nb4 {[%clk 0:02:57.2]}
7. d4 {[%clk 0:02:43.1]} 7... Bf5 {[%clk 0:02:47.3]} 8. Na3 {[%clk 0:02:34.7]}
8... e4 {[%clk 0:02:47.4]} 9. Nd2 {[%clk 0:02:27.8]} 9... Bd6 {[%clk 0:02:40.5]}
10. g3 {[%clk 0:01:57.6]} 10... Qg5 {[%clk 0:02:34.3]} 11. Qe2 {[%clk
0:01:51.2]} 11... Nd3+ {[%clk 0:02:32.2]} 12. Kd1 {[%clk 0:01:51]} 12... Bg4
{[%clk 0:02:27.4]} 13. Nxe4 {[%clk 0:01:50.6]} 13... Qg6 {[%clk 0:02:26.6]} 14.
Nxd6+ {[%clk 0:01:48.4]} 14... cxd6 {[%clk 0:02:25.5]} 0-1

[Event "Early-Titled-Tuesday-Blitz-March-19-2024"]
[Site "Chess.com"]
[Date "2024.03.19"]
[Round "2"]
[White "Pingah9"]
[Black "Agibileg"]
[Result "0-1"]
[WhiteElo "2576"]
[BlackElo "2823"]
[TimeControl "180+1"]
[EndTime "8:13:33 PDT"]
[Termination "Agibileg won by resignation"]

1. e4 {[%clk 0:03:00.9]} 1... c5 {[%clk 0:02:58.3]} 2. Nc3 {[%clk 0:03:00.4]}
2... e6 {[%clk 0:02:57.4]} 3. g3 {[%clk 0:03:00.7]} 3... d5 {[%clk 0:02:56.1]}
4. Bg2 {[%clk 0:03:01.3]} 4... d4 {[%clk 0:02:55.8]} 5. Nce2 {[%clk 0:03:01.1]}
5... Nc6 {[%clk 0:02:55.4]} 6. d3 {[%clk 0:03:01.4]} 6... Nf6 {[%clk 0:02:54.8]}
7. h3 {[%clk 0:03:01.2]} 7... Be7 {[%clk 0:02:52.1]} 8. f4 {[%clk 0:03:01.3]}
8... O-O {[%clk 0:02:51.3]} 9. Nf3 {[%clk 0:03:01.6]} 9... b5 {[%clk 0:02:41.4]}
10. a4 {[%clk 0:03:01.3]} 10... Ba6 {[%clk 0:02:40]} 11. axb5 {[%clk 0:02:58.2]}
11... Bxb5 {[%clk 0:02:40.9]} 12. b3 {[%clk 0:02:57.4]} 12... a5 {[%clk
0:02:39]} 13. O-O {[%clk 0:02:56.4]} 13... a4 {[%clk 0:02:39.1]} 14. bxa4 {[%clk
0:02:56.3]} 14... Rxa4 {[%clk 0:02:40]} 15. Rb1 {[%clk 0:02:50]} 15... Nb4
{[%clk 0:02:36.7]} 16. Ne5 {[%clk 0:02:26.5]} 16... Ra2 {[%clk 0:02:32.4]} 17.
c3 {[%clk 0:02:13.7]} 17... dxc3 {[%clk 0:02:16.9]} 18. Nxc3 {[%clk 0:02:14.6]}
18... Qd4+ {[%clk 0:02:16.5]} 19. Kh2 {[%clk 0:02:05.7]} 19... Qxc3 {[%clk
0:02:16.6]} 0-1

[Event "Early-Titled-Tuesday-Blitz-March-19-2024"]
[Site "Chess.com"]
[Date "2024.03.19"]
[Round "2"]
[White "cthake"]
[Black "AsaHoffmann"]
[Result "0-1"]
[WhiteElo "1797"]
[BlackElo "2448"]
[TimeControl "180+1"]
[EndTime "8:13:44 PDT"]
[Termination "AsaHoffmann won by resignation"]

1. e4 {[%clk 0:03:00.9]} 1... d6 {[%clk 0:02:57.2]} 2. d4 {[%clk 0:03:00.2]}
2... Nf6 {[%clk 0:02:56.2]} 3. Nc3 {[%clk 0:02:59.9]} 3... c6 {[%clk 0:02:55]}
4. h3 {[%clk 0:02:55.5]} 4... Nbd7 {[%clk 0:02:53.8]} 5. Nf3 {[%clk 0:02:55.4]}
5... e5 {[%clk 0:02:53.3]} 6. Be2 {[%clk 0:02:44.5]} 6... Be7 {[%clk 0:02:52.5]}
7. O-O {[%clk 0:02:43.5]} 7... b5 {[%clk 0:02:52.4]} 8. Be3 {[%clk 0:02:32.8]}
8... b4 {[%clk 0:02:51.1]} 9. Na4 {[%clk 0:02:32.9]} 9... Nxe4 {[%clk
0:02:50.2]} 10. dxe5 {[%clk 0:02:27.4]} 10... dxe5 {[%clk 0:02:49.5]} 11. Qd3
{[%clk 0:02:22.4]} 11... Nef6 {[%clk 0:02:48.9]} 12. Qc4 {[%clk 0:02:11.8]}
12... Qc7 {[%clk 0:02:44.8]} 13. Nc5 {[%clk 0:02:05.6]} 13... Nxc5 {[%clk
0:02:35.8]} 14. Bxc5 {[%clk 0:02:04.2]} 14... a5 {[%clk 0:02:33]} 15. Rad1
{[%clk 0:01:45.9]} 15... Be6 {[%clk 0:02:30.7]} 0-1

[Event "Early-Titled-Tuesday-Blitz-March-19-2024"]
[Site "Chess.com"]
[Date "2024.03.19"]
[Round "2"]
[White "JoliyRoger"]
[Black "jocmil"]
[Result "1/2-1/2"]
[WhiteElo "2441"]
[BlackElo "2763"]
[TimeControl "180+1"]
[EndTime "8:13:52 PDT"]
[Termination "Game drawn by repetition"]

1. d4 {[%clk 0:03:00.9]} 1... Nf6 {[%clk 0:02:59.9]} 2. c4 {[%clk 0:03:00.6]}
2... c6 {[%clk 0:03:00.3]} 3. Nc3 {[%clk 0:03:00.6]} 3... d5 {[%clk 0:03:00.6]}
4. cxd5 {[%clk 0:03:00.7]} 4... cxd5 {[%clk 0:03:00.4]} 5. Bf4 {[%clk
0:03:01.4]} 5... Nc6 {[%clk 0:03:01]} 6. e3 {[%clk 0:03:02]} 6... Bf5 {[%clk
0:03:00.5]} 7. Bb5 {[%clk 0:03:02.1]} 7... e6 {[%clk 0:02:59.9]} 8. Nf3 {[%clk
0:03:02.5]} 8... Bd6 {[%clk 0:03:00]} 9. O-O {[%clk 0:03:02.5]} 9... O-O {[%clk
0:03:00.1]} 10. Bxc6 {[%clk 0:02:56.9]} 10... bxc6 {[%clk 0:03:01]} 11. Bxd6
{[%clk 0:02:53.7]} 11... Qxd6 {[%clk 0:03:01.9]} 12. Na4 {[%clk 0:02:53.9]}
12... Bg4 {[%clk 0:02:55.8]} 13. Rc1 {[%clk 0:02:52.4]} 13... Ne4 {[%clk
0:02:52.7]} 14. Qc2 {[%clk 0:02:45.2]} 14... Bxf3 {[%clk 0:02:47.5]} 15. gxf3
{[%clk 0:02:46.1]} 15... Ng5 {[%clk 0:02:48.1]} 16. Kg2 {[%clk 0:02:46.5]} 16...
Qe7 {[%clk 0:02:11.8]} 17. h4 {[%clk 0:02:38.3]} 17... Qf6 {[%clk 0:02:08.3]}
18. Qe2 {[%clk 0:02:22.5]} 18... Qg6 {[%clk 0:01:50.8]} 19. hxg5 {[%clk
0:02:20.3]} 19... Qxg5+ {[%clk 0:01:50.7]} 20. Kh2 {[%clk 0:02:21.2]} 20... Qh4+
{[%clk 0:01:39.7]} 21. Kg2 {[%clk 0:02:21.7]} 21... Qg5+ {[%clk 0:01:37]} 22.
Kh2 {[%clk 0:02:22]} 22... Qh4+ {[%clk 0:01:37.3]} 23. Kg2 {[%clk 0:02:22.7]}
23... Qg5+ {[%clk 0:01:37.8]} 1/2-1/2

[Event "Early-Titled-Tuesday-Blitz-March-19-2024"]
[Site "Chess.com"]
[Date "2024.03.19"]
[Round "2"]
[White "superchess02"]
[Black "NewYearGirl"]
[Result "1-0"]
[WhiteElo "2833"]
[BlackElo "2430"]
[TimeControl "180+1"]
[EndTime "8:13:54 PDT"]
[Termination "superchess02 won by resignation"]

1. d4 {[%clk 0:03:00.9]} 1... Nf6 {[%clk 0:02:59.8]} 2. c4 {[%clk 0:03:01.4]}
2... c5 {[%clk 0:03:00.3]} 3. d5 {[%clk 0:03:01.4]} 3... b5 {[%clk 0:03:00.8]}
4. cxb5 {[%clk 0:03:01.5]} 4... a6 {[%clk 0:03:01.2]} 5. b6 {[%clk 0:03:02.4]}
5... e6 {[%clk 0:03:00.4]} 6. Nc3 {[%clk 0:03:02.6]} 6... Qxb6 {[%clk
0:02:58.6]} 7. e4 {[%clk 0:03:02.3]} 7... exd5 {[%clk 0:02:55.6]} 8. exd5 {[%clk
0:03:03.2]} 8... Bd6 {[%clk 0:02:55.6]} 9. Nf3 {[%clk 0:03:02.3]} 9... O-O
{[%clk 0:02:54.9]} 10. Be2 {[%clk 0:03:03]} 10... Bb7 {[%clk 0:02:52.3]} 11. O-O
{[%clk 0:03:02.4]} 11... a5 {[%clk 0:02:45.4]} 12. Bg5 {[%clk 0:02:55.3]} 12...
Bc7 {[%clk 0:02:37.4]} 13. Bc4 {[%clk 0:02:24.7]} 13... Na6 {[%clk 0:02:29.2]}
14. Qd2 {[%clk 0:02:14.8]} 14... h6 {[%clk 0:02:20.3]} 15. Bh4 {[%clk
0:02:12.5]} 15... Nh5 {[%clk 0:02:20.4]} 16. Be7 {[%clk 0:01:54.3]} 16... Bf4
{[%clk 0:02:13]} 17. Qd3 {[%clk 0:01:53.8]} 17... Qf6 {[%clk 0:01:55.7]} 18.
Bxf6 {[%clk 0:01:53.3]} 1-0

[Event "Early-Titled-Tuesday-Blitz-March-19-2024"]
[Site "Chess.com"]
[Date "2024.03.19"]
[Round "2"]
[White "Njal28"]
[Black "Rutricks"]
[Result "1-0"]
[WhiteElo "3073"]
[BlackElo "2704"]
[TimeControl "180+1"]
[EndTime "8:14:30 PDT"]
[Termination "Njal28 won by resignation"]

1. d4 {[%clk 0:03:00.9]} 1... g6 {[%clk 0:03:00.9]} 2. c4 {[%clk 0:02:55.2]}
2... Bg7 {[%clk 0:03:01.5]} 3. Nc3 {[%clk 0:02:55.6]} 3... d6 {[%clk 0:03:02.2]}
4. Nf3 {[%clk 0:02:54.6]} 4... Nd7 {[%clk 0:03:02]} 5. Bg5 {[%clk 0:02:54.4]}
5... h6 {[%clk 0:03:02.1]} 6. Bh4 {[%clk 0:02:55]} 6... b6 {[%clk 0:03:02]} 7.
e3 {[%clk 0:02:54.6]} 7... Bb7 {[%clk 0:03:02.6]} 8. Be2 {[%clk 0:02:54.6]} 8...
Ngf6 {[%clk 0:03:03.3]} 9. O-O {[%clk 0:02:54.7]} 9... O-O {[%clk 0:03:04.1]}
10. Qc2 {[%clk 0:02:54.2]} 10... g5 {[%clk 0:03:04.2]} 11. Bg3 {[%clk
0:02:54.2]} 11... Nh5 {[%clk 0:03:04.8]} 12. Nxg5 {[%clk 0:02:53.8]} 12... hxg5
{[%clk 0:03:04.9]} 13. Bxh5 {[%clk 0:02:54.3]} 13... Nf6 {[%clk 0:03:05.6]} 14.
Be2 {[%clk 0:02:52.7]} 14... Qd7 {[%clk 0:03:06.2]} 15. Rad1 {[%clk 0:02:49.1]}
15... Rae8 {[%clk 0:03:06.9]} 16. e4 {[%clk 0:02:47.9]} 16... Nh7 {[%clk
0:03:06]} 17. e5 {[%clk 0:02:43.4]} 17... dxe5 {[%clk 0:03:04.5]} 18. dxe5
{[%clk 0:02:41]} 18... Qe6 {[%clk 0:03:04.8]} 19. Bd3 {[%clk 0:02:32.5]} 19...
Qh6 {[%clk 0:03:04.1]} 20. Be4 {[%clk 0:02:29]} 20... Bc8 {[%clk 0:03:03.1]} 21.
Nd5 {[%clk 0:02:26.5]} 21... c6 {[%clk 0:02:59.6]} 22. Ne3 {[%clk 0:02:23.3]}
22... g4 {[%clk 0:02:51.5]} 23. Bf5 {[%clk 0:02:19.4]} 23... Qh5 {[%clk
0:02:46.5]} 24. Bxc8 {[%clk 0:02:06.7]} 24... Rxc8 {[%clk 0:02:47.4]} 25. Qe4
{[%clk 0:02:05.9]} 25... Ng5 {[%clk 0:01:58.2]} 26. Qxg4 {[%clk 0:02:03.5]}
26... Qg6 {[%clk 0:01:59]} 27. Nf5 {[%clk 0:01:55.9]} 27... Rfe8 {[%clk
0:01:56.6]} 28. Nxe7+ {[%clk 0:01:56]} 28... Rxe7 {[%clk 0:01:55]} 29. Qxc8+
{[%clk 0:01:56.9]} 29... Kh7 {[%clk 0:01:54.7]} 30. f4 {[%clk 0:01:55.3]} 30...
Ne4 {[%clk 0:01:51.5]} 31. Qh3+ {[%clk 0:01:55.3]} 31... Bh6 {[%clk 0:01:52.1]}
32. f5 {[%clk 0:01:55.7]} 1-0

[Event "Early-Titled-Tuesday-Blitz-March-19-2024"]
[Site "Chess.com"]
[Date "2024.03.19"]
[Round "2"]
[White "Shield12"]
[Black "secretworker2027"]
[Result "1-0"]
[WhiteElo "2936"]
[BlackElo "2638"]
[TimeControl "180+1"]
[EndTime "8:14:47 PDT"]
[Termination "Shield12 won by resignation"]

1. b3 {[%clk 0:03:00.9]} 1... d5 {[%clk 0:02:59.6]} 2. Bb2 {[%clk 0:03:00.5]}
2... Bg4 {[%clk 0:02:59.8]} 3. h3 {[%clk 0:03:00.3]} 3... Bh5 {[%clk 0:03:00.1]}
4. d3 {[%clk 0:03:01.2]} 4... Nd7 {[%clk 0:02:55]} 5. Nd2 {[%clk 0:03:02.1]}
5... e5 {[%clk 0:02:51]} 6. Ngf3 {[%clk 0:03:01.8]} 6... Bd6 {[%clk 0:02:50.2]}
7. e3 {[%clk 0:03:01.7]} 7... Ne7 {[%clk 0:02:48.9]} 8. Be2 {[%clk 0:02:57.8]}
8... O-O {[%clk 0:02:46.9]} 9. c4 {[%clk 0:02:55.7]} 9... c6 {[%clk 0:02:44.8]}
10. a3 {[%clk 0:02:54.8]} 10... Re8 {[%clk 0:02:42.5]} 11. O-O {[%clk
0:02:53.7]} 11... a5 {[%clk 0:02:41.4]} 12. Rc1 {[%clk 0:02:47.1]} 12... h6
{[%clk 0:02:40.9]} 13. Re1 {[%clk 0:02:47.2]} 13... Bg6 {[%clk 0:02:40.5]} 14.
Qc2 {[%clk 0:02:31.6]} 14... Qb6 {[%clk 0:02:37.5]} 15. Qb1 {[%clk 0:02:24]}
15... f6 {[%clk 0:02:22.7]} 16. Qa1 {[%clk 0:02:10.9]} 16... Nc5 {[%clk
0:02:18.6]} 17. Rc3 {[%clk 0:01:56.6]} 17... Red8 {[%clk 0:01:33.3]} 18. d4
{[%clk 0:01:55.8]} 18... exd4 {[%clk 0:01:31.5]} 19. exd4 {[%clk 0:01:56.7]}
19... Ne4 {[%clk 0:01:26]} 20. Nxe4 {[%clk 0:01:53.4]} 20... dxe4 {[%clk
0:01:25.2]} 21. c5 {[%clk 0:01:53.7]} 21... exf3 {[%clk 0:01:18.7]} 22. Bc4+
{[%clk 0:01:50.4]} 1-0

[Event "Early-Titled-Tuesday-Blitz-March-19-2024"]
[Site "Chess.com"]
[Date "2024.03.19"]
[Round "2"]
[White "MKlose11"]
[Black "Arystanner"]
[Result "0-1"]
[WhiteElo "2592"]
[BlackElo "2840"]
[TimeControl "180+1"]
[EndTime "8:15:07 PDT"]
[Termination "Arystanner won by resignation"]

1. e4 {[%clk 0:03:00.9]} 1... c5 {[%clk 0:03:00.3]} 2. Nc3 {[%clk 0:02:59.6]}
2... e6 {[%clk 0:03:00.3]} 3. g3 {[%clk 0:03:00.5]} 3... Nc6 {[%clk 0:02:55.6]}
4. Bg2 {[%clk 0:02:59.7]} 4... a6 {[%clk 0:02:56.2]} 5. d3 {[%clk 0:02:58.7]}
5... d6 {[%clk 0:02:56.7]} 6. Nge2 {[%clk 0:02:55.1]} 6... Nf6 {[%clk
0:02:57.2]} 7. O-O {[%clk 0:02:55.2]} 7... Be7 {[%clk 0:02:57.9]} 8. h3 {[%clk
0:02:50.6]} 8... O-O {[%clk 0:02:57.2]} 9. Bd2 {[%clk 0:02:51]} 9... Rb8 {[%clk
0:02:57.6]} 10. Be3 {[%clk 0:02:41.2]} 10... b5 {[%clk 0:02:54.6]} 11. d4 {[%clk
0:02:41.3]} 11... cxd4 {[%clk 0:02:53.8]} 12. Nxd4 {[%clk 0:02:41.1]} 12... Nxd4
{[%clk 0:02:50.8]} 13. Qxd4 {[%clk 0:02:39.7]} 13... b4 {[%clk 0:02:44.5]} 14.
Ne2 {[%clk 0:02:25.4]} 14... e5 {[%clk 0:02:45]} 15. Qd2 {[%clk 0:02:24]} 15...
Bb7 {[%clk 0:02:41.9]} 16. f3 {[%clk 0:02:09]} 16... d5 {[%clk 0:02:41.3]} 17.
exd5 {[%clk 0:02:06.3]} 17... Nxd5 {[%clk 0:02:41.2]} 18. Ba7 {[%clk 0:02:02.4]}
18... Ra8 {[%clk 0:02:37.2]} 19. Bf2 {[%clk 0:02:02.1]} 19... Nf4 {[%clk
0:02:32.9]} 20. Qe3 {[%clk 0:01:51.2]} 20... Nxg2 {[%clk 0:02:25.2]} 21. Kxg2
{[%clk 0:01:51.5]} 21... Qd5 {[%clk 0:02:19.8]} 22. c3 {[%clk 0:01:50.3]} 22...
Bg5 {[%clk 0:02:09.5]} 23. Qe4 {[%clk 0:01:17.5]} 23... Qxe4 {[%clk 0:02:09.6]}
24. fxe4 {[%clk 0:01:17.8]} 24... Bxe4+ {[%clk 0:02:10.3]} 25. Kh2 {[%clk
0:01:18.7]} 25... Rfd8 {[%clk 0:01:59.8]} 26. cxb4 {[%clk 0:01:13.2]} 26... Rd2
{[%clk 0:01:58]} 27. Nc3 {[%clk 0:01:12.4]} 27... Bd3 {[%clk 0:01:58.1]} 28.
Rad1 {[%clk 0:01:04.3]} 28... Bxf1 {[%clk 0:01:57.4]} 29. Rxd2 {[%clk
0:01:04.5]} 29... Bxd2 {[%clk 0:01:57.5]} 0-1

[Event "Early-Titled-Tuesday-Blitz-March-19-2024"]
[Site "Chess.com"]
[Date "2024.03.19"]
[Round "2"]
[White "kingofthenil"]
[Black "koncheto"]
[Result "0-1"]
[WhiteElo "2778"]
[BlackElo "2513"]
[TimeControl "180+1"]
[EndTime "8:15:50 PDT"]
[Termination "koncheto won by resignation"]

1. Nf3 {[%clk 0:02:49.5]} 1... Nf6 {[%clk 0:02:50.8]} 2. g3 {[%clk 0:02:48.5]}
2... b6 {[%clk 0:02:50.7]} 3. Bg2 {[%clk 0:02:48.6]} 3... Bb7 {[%clk 0:02:51.2]}
4. O-O {[%clk 0:02:48.5]} 4... c5 {[%clk 0:02:51.8]} 5. d3 {[%clk 0:02:37.1]}
5... d5 {[%clk 0:02:50.6]} 6. e3 {[%clk 0:02:30.2]} 6... e6 {[%clk 0:02:43.8]}
7. d4 {[%clk 0:02:25.1]} 7... Be7 {[%clk 0:02:38.6]} 8. Re1 {[%clk 0:02:25.3]}
8... O-O {[%clk 0:02:38]} 9. b3 {[%clk 0:02:25.6]} 9... Nc6 {[%clk 0:02:31.1]}
10. Bb2 {[%clk 0:02:24.7]} 10... Rc8 {[%clk 0:02:30.9]} 11. a3 {[%clk
0:02:23.3]} 11... Ne4 {[%clk 0:02:15.4]} 12. Nbd2 {[%clk 0:02:23.2]} 12... Bf6
{[%clk 0:02:09.5]} 13. c4 {[%clk 0:02:23.4]} 13... Nxd2 {[%clk 0:01:53]} 14.
Qxd2 {[%clk 0:02:24.3]} 14... cxd4 {[%clk 0:01:53.1]} 15. Nxd4 {[%clk
0:02:23.5]} 15... dxc4 {[%clk 0:01:42.2]} 16. Rad1 {[%clk 0:02:11.5]} 16... Nxd4
{[%clk 0:01:17.6]} 17. Bxb7 {[%clk 0:02:10]} 17... Nf3+ {[%clk 0:01:17.9]} 18.
Bxf3 {[%clk 0:02:09.4]} 18... Qxd2 {[%clk 0:01:17.8]} 19. Rxd2 {[%clk 0:02:10]}
19... c3 {[%clk 0:01:18.7]} 20. Rc2 {[%clk 0:00:57.6]} 20... cxb2 {[%clk
0:01:12.3]} 21. Rxc8 {[%clk 0:00:58.5]} 21... Rxc8 {[%clk 0:01:11.6]} 22. Kf1
{[%clk 0:00:59.4]} 22... Rc1 {[%clk 0:01:08.1]} 23. Be4 {[%clk 0:00:59.4]} 23...
Bc3 {[%clk 0:01:08]} 0-1

[Event "Early-Titled-Tuesday-Blitz-March-19-2024"]
[Site "Chess.com"]
[Date "2024.03.19"]
[Round "2"]
[White "Korchmar_Vasiliy"]
[Black "KorolDimitriy75"]
[Result "1-0"]
[WhiteElo "2681"]
[BlackElo "2415"]
[TimeControl "180+1"]
[EndTime "8:15:52 PDT"]
[Termination "Korchmar_Vasiliy won by checkmate"]

1. e4 {[%clk 0:03:00.9]} 1... c5 {[%clk 0:02:59.8]} 2. Nf3 {[%clk 0:03:00]} 2...
d6 {[%clk 0:02:59.9]} 3. d4 {[%clk 0:03:00.1]} 3... cxd4 {[%clk 0:03:00.8]} 4.
Nxd4 {[%clk 0:03:00.6]} 4... Nf6 {[%clk 0:03:01.2]} 5. Nc3 {[%clk 0:03:01.1]}
5... g6 {[%clk 0:03:01.9]} 6. Be2 {[%clk 0:02:58.5]} 6... Bg7 {[%clk 0:03:01.8]}
7. O-O {[%clk 0:02:59.2]} 7... O-O {[%clk 0:03:02]} 8. Re1 {[%clk 0:02:59.6]}
8... Nc6 {[%clk 0:03:02]} 9. Nb3 {[%clk 0:02:53.8]} 9... a6 {[%clk 0:03:01.2]}
10. Bf1 {[%clk 0:02:50.8]} 10... b5 {[%clk 0:03:00.1]} 11. Bg5 {[%clk
0:02:50.8]} 11... Bb7 {[%clk 0:02:47]} 12. Nd5 {[%clk 0:02:48.8]} 12... Nd7
{[%clk 0:02:45.6]} 13. c3 {[%clk 0:02:47.8]} 13... f6 {[%clk 0:02:21.4]} 14. Be3
{[%clk 0:02:44.9]} 14... e6 {[%clk 0:02:18.7]} 15. Nf4 {[%clk 0:02:44.3]} 15...
Qe7 {[%clk 0:02:19]} 16. a4 {[%clk 0:02:43.1]} 16... bxa4 {[%clk 0:01:48]} 17.
Rxa4 {[%clk 0:02:44]} 17... Nde5 {[%clk 0:01:46.2]} 18. Nd4 {[%clk 0:02:35.9]}
18... Nd8 {[%clk 0:01:17.1]} 19. Qa1 {[%clk 0:02:26.4]} 19... Bxe4 {[%clk
0:00:47.3]} 20. Ndxe6 {[%clk 0:02:10.5]} 20... Nxe6 {[%clk 0:00:29.1]} 21. Nxe6
{[%clk 0:02:10.7]} 21... Qxe6 {[%clk 0:00:28.1]} 22. Rxe4 {[%clk 0:02:10.9]}
22... f5 {[%clk 0:00:13.7]} 23. Ra4 {[%clk 0:02:06.9]} 23... Kh8 {[%clk
0:00:10.3]} 24. Rxa6 {[%clk 0:02:05.6]} 24... Rxa6 {[%clk 0:00:08.2]} 25. Qxa6
{[%clk 0:02:06.5]} 25... f4 {[%clk 0:00:08.7]} 26. Bd4 {[%clk 0:02:06.9]} 26...
Nf3+ {[%clk 0:00:07.6]} 27. gxf3 {[%clk 0:02:07.3]} 27... Qxe1 {[%clk
0:00:08.3]} 28. Qxd6 {[%clk 0:02:07.9]} 28... Bxd4 {[%clk 0:00:03.3]} 29. Qxf8#
{[%clk 0:02:07.6]} 1-0

[Event "Early-Titled-Tuesday-Blitz-March-19-2024"]
[Site "Chess.com"]
[Date "2024.03.19"]
[Round "2"]
[White "ArmanGhevondyanchess"]
[Black "atalz0"]
[Result "1-0"]
[WhiteElo "2581"]
[BlackElo "2371"]
[TimeControl "180+1"]
[EndTime "8:16:03 PDT"]
[Termination "ArmanGhevondyanchess won by checkmate"]

1. Nf3 {[%clk 0:02:57.7]} 1... Nf6 {[%clk 0:02:59.7]} 2. g3 {[%clk 0:02:56.7]}
2... b5 {[%clk 0:02:59.3]} 3. Bg2 {[%clk 0:02:57]} 3... Bb7 {[%clk 0:02:59.7]}
4. O-O {[%clk 0:02:56.8]} 4... e6 {[%clk 0:03:00.2]} 5. d4 {[%clk 0:02:56.6]}
5... Be7 {[%clk 0:03:00.4]} 6. Na3 {[%clk 0:02:52.3]} 6... b4 {[%clk 0:02:55.7]}
7. Nc4 {[%clk 0:02:52.5]} 7... a5 {[%clk 0:02:56.4]} 8. a3 {[%clk 0:02:51.5]}
8... O-O {[%clk 0:02:55.3]} 9. axb4 {[%clk 0:02:51.3]} 9... axb4 {[%clk
0:02:56.1]} 10. Rxa8 {[%clk 0:02:51.7]} 10... Bxa8 {[%clk 0:02:57]} 11. c3
{[%clk 0:02:50.5]} 11... d5 {[%clk 0:02:54.9]} 12. Nce5 {[%clk 0:02:50]} 12...
Nbd7 {[%clk 0:02:50.3]} 13. Bf4 {[%clk 0:02:50]} 13... c5 {[%clk 0:02:41.4]} 14.
Nxd7 {[%clk 0:02:47.1]} 14... Nxd7 {[%clk 0:02:41.9]} 15. Ne5 {[%clk 0:02:47.3]}
15... Nxe5 {[%clk 0:02:31.8]} 16. Bxe5 {[%clk 0:02:48.2]} 16... Qb6 {[%clk
0:02:16.6]} 17. Qd2 {[%clk 0:02:44.7]} 17... Bc6 {[%clk 0:02:10.5]} 18. dxc5
{[%clk 0:02:43.5]} 18... Bxc5 {[%clk 0:02:05.5]} 19. Bd4 {[%clk 0:02:43.9]}
19... Bxd4 {[%clk 0:01:51]} 20. cxd4 {[%clk 0:02:42.9]} 20... Ra8 {[%clk
0:01:43.7]} 21. Rc1 {[%clk 0:02:42.7]} 21... h6 {[%clk 0:01:40]} 22. e3 {[%clk
0:02:42.8]} 22... Ra2 {[%clk 0:01:35.7]} 23. Bf1 {[%clk 0:02:39.1]} 23... g6
{[%clk 0:01:23.5]} 24. Bd3 {[%clk 0:02:37.8]} 24... Kg7 {[%clk 0:01:21.4]} 25.
h4 {[%clk 0:02:36.9]} 25... h5 {[%clk 0:01:20.8]} 26. Bb1 {[%clk 0:02:36.6]}
26... Ra8 {[%clk 0:01:17.8]} 27. Bd3 {[%clk 0:02:36]} 27... Ra2 {[%clk
0:01:13.7]} 28. Kg2 {[%clk 0:02:33.1]} 28... Bb7 {[%clk 0:01:03.6]} 29. Rc5
{[%clk 0:02:30]} 29... Bc6 {[%clk 0:00:40.8]} 30. Qc1 {[%clk 0:02:27]} 30... Bd7
{[%clk 0:00:35.8]} 31. Rc7 {[%clk 0:02:26.9]} 31... Ra1 {[%clk 0:00:20.3]} 32.
Qc2 {[%clk 0:02:21.8]} 32... Bb5 {[%clk 0:00:18.7]} 33. Bxg6 {[%clk 0:02:18.7]}
33... Be8 {[%clk 0:00:10.2]} 34. Bh7 {[%clk 0:02:11.6]} 34... Kh6 {[%clk
0:00:07.1]} 35. Bg8 {[%clk 0:02:09.8]} 35... Qb5 {[%clk 0:00:06.3]} 36. Qh7#
{[%clk 0:02:09.3]} 1-0